[Event "Titled Tuesday Blitz July 05 Early 2022"]
[White "Molina, Roberto Junio Brito"]
[Black "Moon, Benjamin"]
[WhiteFideId "2109450"]
[BlackFideId "2064847"]
[WhiteElo "2432"]
[BlackElo "2601"]
[Result "1-0"]
[Round "08"]
[TimeControl "180+1"]
[Date "2022.07.05"]
[WhiteClock "0:00:14"]
[BlackClock "0:00:08"]

1. d4 {[%clk 0:03:00]}  Nf6 {[%clk 0:03:00]} 2. Nf3 {[%clk 0:02:59]}  g6 {[%clk 0:03:00]} 3. e3 {[%clk 0:03:00]}  Bg7 {[%clk 0:03:00]} 4. Be2 {[%clk 0:02:57]}  O-O {[%clk 0:03:01]} 5. O-O {[%clk 0:02:58]}  d5 {[%clk 0:02:57]} 6. c4 {[%clk 0:02:56]}  c5 {[%clk 0:02:57]} 7. dxc5 {[%clk 0:02:56]}  Na6 {[%clk 0:02:33]} 8. c6 {[%clk 0:02:54]}  bxc6 {[%clk 0:02:31]} 9. Nc3 {[%clk 0:02:52]}  Rb8 {[%clk 0:02:25]} 10. Nd4 {[%clk 0:02:37]}  Bb7 {[%clk 0:02:10]} 11. cxd5 {[%clk 0:02:32]}  cxd5 {[%clk 0:02:11]} 12. Qa4 {[%clk 0:02:21]}  Qb6 {[%clk 0:02:03]} 13. Qa3 {[%clk 0:02:17]}  e5 {[%clk 0:01:57]} 14. Nf3 {[%clk 0:02:06]}  Rfe8 {[%clk 0:01:56]} 15. Bd2 {[%clk 0:01:56]}  Bf8 {[%clk 0:01:54]} 16. Qb3 {[%clk 0:01:54]}  Qe6 {[%clk 0:01:26]} 17. Rfc1 {[%clk 0:01:45]}  Nc5 {[%clk 0:01:23]} 18. Qd1 {[%clk 0:01:44]}  Rbd8 {[%clk 0:01:08]} 19. Nb5 {[%clk 0:01:39]}  Qb6 {[%clk 0:01:05]} 20. a4 {[%clk 0:01:26]}  a5 {[%clk 0:00:46]} 21. b4 {[%clk 0:01:22]}  axb4 {[%clk 0:00:41]} 22. a5 {[%clk 0:01:22]}  Qe6 {[%clk 0:00:36]} 23. Nc7 {[%clk 0:01:18]}  Qf5 {[%clk 0:00:36]} 24. Nxe8 {[%clk 0:01:17]}  Rxe8 {[%clk 0:00:37]} 25. Bxb4 {[%clk 0:01:16]}  Nce4 {[%clk 0:00:29]} 26. Bxf8 {[%clk 0:01:14]}  Rxf8 {[%clk 0:00:30]} 27. a6 {[%clk 0:01:13]}  Ba8 {[%clk 0:00:29]} 28. h3 {[%clk 0:01:02]}  d4 {[%clk 0:00:29]} 29. exd4 {[%clk 0:00:58]}  Nxf2 {[%clk 0:00:17]} 30. Kxf2 {[%clk 0:00:54]}  e4 {[%clk 0:00:16]} 31. Qc2 {[%clk 0:00:49]}  Nd5 {[%clk 0:00:14]} 32. Kg1 {[%clk 0:00:40]}  Ne3 {[%clk 0:00:14]} 33. Qd2 {[%clk 0:00:39]}  Nxg2 {[%clk 0:00:14]} 34. Qg5 {[%clk 0:00:21]}  exf3 {[%clk 0:00:08]} 35. Qxf5 {[%clk 0:00:19]}  gxf5 {[%clk 0:00:09]} 36. Bb5 {[%clk 0:00:16]}  Nf4 {[%clk 0:00:08]} 37. Bc6 {[%clk 0:00:14]}  Ne2+ {[%clk 0:00:08]} 38. Kf2 {[%clk 0:00:14]}  Nxc1 {[%clk 0:00:08]} 39. Rxc1 {[%clk 0:00:13]}  Bxc6 {[%clk 0:00:09]} 40. Rxc6 {[%clk 0:00:14]}  Kg7 {[%clk 0:00:05]} 41. a7 {[%clk 0:00:13]}  Ra8 {[%clk 0:00:05]} 42. Ra6 {[%clk 0:00:13]}  Kf8 {[%clk 0:00:04]} 43. Kxf3 {[%clk 0:00:13]}  Ke7 {[%clk 0:00:03]} 44. Kf4 {[%clk 0:00:14]}  Kd7 {[%clk 0:00:04]} 45. Kxf5 {[%clk 0:00:14]}  Kc7 {[%clk 0:00:05]} 46. Kf6 {[%clk 0:00:13]}  Kb7 {[%clk 0:00:05]} 47. Ra1 {[%clk 0:00:13]}  h5 {[%clk 0:00:03]} 48. h4 {[%clk 0:00:13]}  Kc6 {[%clk 0:00:03]} 49. Ra5 {[%clk 0:00:12]}  Kb6 {[%clk 0:00:03]} 50. Ra2 {[%clk 0:00:12]}  Kc6 {[%clk 0:00:03]} 51. Ra3 {[%clk 0:00:11]}  Kd5 {[%clk 0:00:03]} 52. Ra4 {[%clk 0:00:12]}  Kd6 {[%clk 0:00:03]} 53. Kxf7 {[%clk 0:00:12]}  Kd5 {[%clk 0:00:04]} 54. Kg6 {[%clk 0:00:12]}  Ke4 {[%clk 0:00:03]} 55. Kxh5 {[%clk 0:00:12]}  Kf5 {[%clk 0:00:04]} 56. Kh6 {[%clk 0:00:12]}  Kf6 {[%clk 0:00:05]} 57. Ra6+ {[%clk 0:00:12]}  Kf7 {[%clk 0:00:05]} 58. Kg5 {[%clk 0:00:13]}  Rg8+ {[%clk 0:00:05]} 59. Kf5 {[%clk 0:00:13]}  Ra8 {[%clk 0:00:06]} 60. h5 {[%clk 0:00:13]}  Ke7 {[%clk 0:00:07]} 61. h6 {[%clk 0:00:14]}  Rf8+ {[%clk 0:00:07]} 62. Ke5 {[%clk 0:00:14]}  Ra8 {[%clk 0:00:07]} 63. h7 {[%clk 0:00:14]}  Kd7 {[%clk 0:00:08]} 64. h8=Q {[%clk 0:00:14]}  Rxh8 {[%clk 0:00:08]} 65. a8=Q {[%clk 0:00:14]} 1-0


[Site "https://www.chess.com"]

[Event "Titled Tuesday Blitz July 05 Early 2022"]
[White "Naroditsky, Daniel"]
[Black "Zhou, Liran"]
[WhiteFideId "2026961"]
[BlackFideId "30931967"]
[WhiteElo "2608"]
[BlackElo "2786"]
[Result "1-0"]
[Round "08"]
[TimeControl "180+1"]
[Date "2022.07.05"]
[WhiteClock "0:01:27"]
[BlackClock "0:00:17"]

1. c4 {[%clk 0:03:00]}  Nf6 {[%clk 0:02:57]} 2. Nc3 {[%clk 0:03:01]}  g6 {[%clk 0:02:54]} 3. e4 {[%clk 0:03:01]}  d6 {[%clk 0:02:54]} 4. d4 {[%clk 0:03:01]}  Bg7 {[%clk 0:02:55]} 5. Be2 {[%clk 0:03:02]}  O-O {[%clk 0:02:55]} 6. Be3 {[%clk 0:03:02]}  e5 {[%clk 0:02:55]} 7. d5 {[%clk 0:03:03]}  a5 {[%clk 0:02:55]} 8. g4 {[%clk 0:03:03]}  Na6 {[%clk 0:02:54]} 9. g5 {[%clk 0:03:03]}  Nd7 {[%clk 0:02:54]} 10. h4 {[%clk 0:03:03]}  f5 {[%clk 0:02:55]} 11. Qc2 {[%clk 0:02:58]}  Ndc5 {[%clk 0:02:42]} 12. a3 {[%clk 0:02:47]}  fxe4 {[%clk 0:02:28]} 13. Nxe4 {[%clk 0:02:42]}  Nxe4 {[%clk 0:02:15]} 14. Qxe4 {[%clk 0:02:43]}  Nc5 {[%clk 0:02:15]} 15. Bxc5 {[%clk 0:02:14]}  dxc5 {[%clk 0:02:15]} 16. Qe3 {[%clk 0:02:08]}  e4 {[%clk 0:02:06]} 17. O-O-O {[%clk 0:02:07]}  Bd4 {[%clk 0:02:03]} 18. Rxd4 {[%clk 0:02:06]}  cxd4 {[%clk 0:02:03]} 19. Qxd4 {[%clk 0:02:07]}  Qd6 {[%clk 0:01:56]} 20. Nh3 {[%clk 0:01:51]}  Bxh3 {[%clk 0:01:53]} 21. Rxh3 {[%clk 0:01:51]}  Qf4+ {[%clk 0:01:54]} 22. Re3 {[%clk 0:01:51]}  Rae8 {[%clk 0:01:41]} 23. c5 {[%clk 0:01:41]}  Qe5 {[%clk 0:01:29]} 24. Qc4 {[%clk 0:01:40]}  Rxf2 {[%clk 0:01:22]} 25. d6+ {[%clk 0:01:40]}  Kg7 {[%clk 0:01:16]} 26. d7 {[%clk 0:01:38]}  Ref8 {[%clk 0:00:26]} 27. Rxe4 {[%clk 0:01:33]}  Qh2 {[%clk 0:00:19]} 28. Re7+ {[%clk 0:01:28]}  R2f7 {[%clk 0:00:16]} 29. Rxf7+ {[%clk 0:01:27]}  Rxf7 {[%clk 0:00:17]} 30. Qd4+ {[%clk 0:01:27]} 1-0


[Site "https://www.chess.com"]

[Event "Titled Tuesday Blitz July 05 Early 2022"]
[White "Oparin, Grigoriy"]
[Black "Moiseenko, Alexander"]
[WhiteFideId "24125890"]
[BlackFideId "14102560"]
[WhiteElo "2639"]
[BlackElo "2577"]
[Result "1-0"]
[Round "08"]
[TimeControl "180+1"]
[Date "2022.07.05"]
[WhiteClock "0:00:15"]
[BlackClock "0:00:04"]

1. d4 {[%clk 0:03:00]}  Nf6 {[%clk 0:02:57]} 2. c4 {[%clk 0:03:01]}  e6 {[%clk 0:02:57]} 3. Nf3 {[%clk 0:03:02]}  d5 {[%clk 0:02:54]} 4. g3 {[%clk 0:03:02]}  dxc4 {[%clk 0:02:53]} 5. Bg2 {[%clk 0:03:02]}  Bd7 {[%clk 0:02:53]} 6. Ne5 {[%clk 0:03:01]}  Bc6 {[%clk 0:02:54]} 7. Nxc6 {[%clk 0:03:02]}  Nxc6 {[%clk 0:02:55]} 8. O-O {[%clk 0:03:02]}  Qd7 {[%clk 0:02:55]} 9. e3 {[%clk 0:03:03]}  O-O-O {[%clk 0:02:54]} 10. Qa4 {[%clk 0:02:59]}  e5 {[%clk 0:02:42]} 11. Nc3 {[%clk 0:02:58]}  exd4 {[%clk 0:02:41]} 12. exd4 {[%clk 0:02:58]}  Kb8 {[%clk 0:02:40]} 13. Qxc4 {[%clk 0:02:29]}  Qxd4 {[%clk 0:02:00]} 14. Qxf7 {[%clk 0:02:25]}  Ne5 {[%clk 0:01:34]} 15. Qb3 {[%clk 0:02:24]}  Qb6 {[%clk 0:01:34]} 16. Qc2 {[%clk 0:02:02]}  Neg4 {[%clk 0:01:10]} 17. Na4 {[%clk 0:01:49]}  Qa6 {[%clk 0:00:58]} 18. b4 {[%clk 0:01:40]}  Qd3 {[%clk 0:00:45]} 19. Qxd3 {[%clk 0:01:29]}  Rxd3 {[%clk 0:00:46]} 20. Rb1 {[%clk 0:01:30]}  Ne5 {[%clk 0:00:29]} 21. Be3 {[%clk 0:01:08]}  Ra3 {[%clk 0:00:18]} 22. Rfd1 {[%clk 0:01:02]}  Bd6 {[%clk 0:00:14]} 23. Nc5 {[%clk 0:01:02]}  Nfg4 {[%clk 0:00:13]} 24. Nxb7 {[%clk 0:00:43]}  Nxe3 {[%clk 0:00:13]} 25. fxe3 {[%clk 0:00:43]}  Nc4 {[%clk 0:00:12]} 26. Nxd6 {[%clk 0:00:32]}  Nxd6 {[%clk 0:00:12]} 27. e4 {[%clk 0:00:30]}  Rxa2 {[%clk 0:00:11]} 28. e5 {[%clk 0:00:30]}  Nf5 {[%clk 0:00:11]} 29. Rd3 {[%clk 0:00:27]}  Re2 {[%clk 0:00:10]} 30. Rbd1 {[%clk 0:00:27]}  Kc8 {[%clk 0:00:08]} 31. Rd5 {[%clk 0:00:19]}  Rxg2+ {[%clk 0:00:04]} 32. Kxg2 {[%clk 0:00:20]}  Ne3+ {[%clk 0:00:05]} 33. Kf3 {[%clk 0:00:20]}  Nxd1 {[%clk 0:00:05]} 34. Rxd1 {[%clk 0:00:20]}  Rd8 {[%clk 0:00:04]} 35. Ra1 {[%clk 0:00:17]}  Rd4 {[%clk 0:00:03]} 36. Rxa7 {[%clk 0:00:16]}  Rxb4 {[%clk 0:00:03]} 37. Ra8+ {[%clk 0:00:16]}  Kd7 {[%clk 0:00:04]} 38. Rg8 {[%clk 0:00:16]}  g6 {[%clk 0:00:04]} 39. Rg7+ {[%clk 0:00:16]}  Ke6 {[%clk 0:00:04]} 40. Rxh7 {[%clk 0:00:14]}  Kxe5 {[%clk 0:00:05]} 41. Rxc7 {[%clk 0:00:15]}  Kf6 {[%clk 0:00:05]} 42. h4 {[%clk 0:00:12]}  Ra4 {[%clk 0:00:04]} 43. Rd7 {[%clk 0:00:12]}  Rb4 {[%clk 0:00:04]} 44. Ke3 {[%clk 0:00:12]}  Ra4 {[%clk 0:00:04]} 45. Rd5 {[%clk 0:00:11]}  Rb4 {[%clk 0:00:03]} 46. Kf3 {[%clk 0:00:11]}  Ra4 {[%clk 0:00:04]} 47. Rd3 {[%clk 0:00:12]}  Rb4 {[%clk 0:00:04]} 48. Re3 {[%clk 0:00:13]}  Ra4 {[%clk 0:00:05]} 49. Re4 {[%clk 0:00:13]}  Ra3+ {[%clk 0:00:05]} 50. Kf4 {[%clk 0:00:14]}  Ra1 {[%clk 0:00:06]} 51. Kg4 {[%clk 0:00:13]}  Rf1 {[%clk 0:00:06]} 52. Rf4+ {[%clk 0:00:13]}  Rxf4+ {[%clk 0:00:06]} 53. Kxf4 {[%clk 0:00:14]}  Kg7 {[%clk 0:00:04]} 54. Kg5 {[%clk 0:00:14]}  Kf7 {[%clk 0:00:04]} 55. Kh6 {[%clk 0:00:14]}  Kf6 {[%clk 0:00:05]} 56. g4 {[%clk 0:00:15]}  Kf7 {[%clk 0:00:04]} 57. g5 {[%clk 0:00:15]} 1-0


[Site "https://www.chess.com"]

[Event "Titled Tuesday Blitz July 05 Early 2022"]
[White "Paichadze, Luka"]
[Black "Leiva, Gianmarco"]
[WhiteFideId "13602934"]
[BlackFideId "3804399"]
[WhiteElo "2537"]
[BlackElo "2323"]
[Result "1-0"]
[Round "08"]
[TimeControl "180+1"]
[Date "2022.07.05"]
[WhiteClock "0:00:14"]
[BlackClock "0:00:01"]

1. e4 {[%clk 0:03:00]}  c5 {[%clk 0:02:51]} 2. Nf3 {[%clk 0:03:00]}  d6 {[%clk 0:02:51]} 3. d4 {[%clk 0:02:59]}  cxd4 {[%clk 0:02:50]} 4. Qxd4 {[%clk 0:03:00]}  Nf6 {[%clk 0:02:50]} 5. Bg5 {[%clk 0:02:59]}  Nc6 {[%clk 0:02:46]} 6. Bb5 {[%clk 0:02:58]}  e6 {[%clk 0:02:46]} 7. Nc3 {[%clk 0:02:51]}  Be7 {[%clk 0:02:41]} 8. O-O-O {[%clk 0:02:48]}  Bd7 {[%clk 0:02:33]} 9. Bxc6 {[%clk 0:02:46]}  Bxc6 {[%clk 0:02:34]} 10. Qd3 {[%clk 0:02:33]}  h6 {[%clk 0:02:26]} 11. Bf4 {[%clk 0:02:28]}  d5 {[%clk 0:02:20]} 12. Ne5 {[%clk 0:02:13]}  O-O {[%clk 0:02:01]} 13. exd5 {[%clk 0:02:07]}  Bxd5 {[%clk 0:01:44]} 14. Rhe1 {[%clk 0:01:52]}  Rc8 {[%clk 0:01:36]} 15. g4 {[%clk 0:01:48]}  Bb4 {[%clk 0:01:02]} 16. g5 {[%clk 0:01:22]}  Bxc3 {[%clk 0:01:03]} 17. bxc3 {[%clk 0:01:21]}  hxg5 {[%clk 0:01:03]} 18. Bxg5 {[%clk 0:01:21]}  Qa5 {[%clk 0:01:03]} 19. Bxf6 {[%clk 0:01:20]}  Rxc3 {[%clk 0:01:02]} 20. Rg1 {[%clk 0:00:44]}  Qa3+ {[%clk 0:00:51]} 21. Kd2 {[%clk 0:00:44]}  Rxd3+ {[%clk 0:00:52]} 22. Nxd3 {[%clk 0:00:28]}  g6 {[%clk 0:00:39]} 23. Rg3 {[%clk 0:00:28]}  Qa5+ {[%clk 0:00:16]} 24. c3 {[%clk 0:00:24]}  Qxa2+ {[%clk 0:00:04]} 25. Ke1 {[%clk 0:00:23]}  Bg2 {[%clk 0:00:03]} 26. Rxg2 {[%clk 0:00:22]}  Qd5 {[%clk 0:00:03]} 27. Rg4 {[%clk 0:00:17]}  Qf5 {[%clk 0:00:03]} 28. Rf4 {[%clk 0:00:17]}  Qd5 {[%clk 0:00:02]} 29. Rh4 {[%clk 0:00:16]}  Qh1+ {[%clk 0:00:01]} 30. Ke2 {[%clk 0:00:15]}  Qe4+ {[%clk 0:00:01]} 31. Rxe4 {[%clk 0:00:14]} 1-0


[Site "https://www.chess.com"]

[Event "Titled Tuesday Blitz July 05 Early 2022"]
[White "Pesotskiy, Mikhail"]
[Black "Rosen, Eric"]
[WhiteFideId "34164453"]
[BlackFideId "2032562"]
[WhiteElo "2010"]
[BlackElo "2362"]
[Result "1-0"]
[Round "08"]
[TimeControl "180+1"]
[Date "2022.07.05"]
[WhiteClock "0:00:09"]
[BlackClock "0:00:06"]

1. c4 {[%clk 0:03:00]}  e5 {[%clk 0:02:59]} 2. g3 {[%clk 0:02:59]}  Nf6 {[%clk 0:02:59]} 3. Bg2 {[%clk 0:02:59]}  Nc6 {[%clk 0:03:00]} 4. Nc3 {[%clk 0:02:59]}  Bc5 {[%clk 0:03:00]} 5. e3 {[%clk 0:03:00]}  d5 {[%clk 0:03:01]} 6. cxd5 {[%clk 0:02:47]}  Nb4 {[%clk 0:03:01]} 7. d4 {[%clk 0:02:47]}  exd4 {[%clk 0:03:00]} 8. exd4 {[%clk 0:02:48]}  Be7 {[%clk 0:03:00]} 9. Nge2 {[%clk 0:02:43]}  Nbxd5 {[%clk 0:02:58]} 10. O-O {[%clk 0:02:43]}  O-O {[%clk 0:02:58]} 11. Nf4 {[%clk 0:02:36]}  Nxc3 {[%clk 0:02:36]} 12. bxc3 {[%clk 0:02:35]}  c6 {[%clk 0:02:37]} 13. Qb3 {[%clk 0:02:31]}  Qc7 {[%clk 0:02:23]} 14. Re1 {[%clk 0:02:05]}  Bd6 {[%clk 0:02:19]} 15. Rb1 {[%clk 0:02:01]}  Bf5 {[%clk 0:02:16]} 16. Rb2 {[%clk 0:01:59]}  Rab8 {[%clk 0:02:16]} 17. Rbe2 {[%clk 0:01:58]}  Rfe8 {[%clk 0:01:43]} 18. Ba3 {[%clk 0:01:50]}  Bxf4 {[%clk 0:01:31]} 19. Rxe8+ {[%clk 0:01:33]}  Rxe8 {[%clk 0:01:17]} 20. Rxe8+ {[%clk 0:01:33]}  Nxe8 {[%clk 0:01:18]} 21. gxf4 {[%clk 0:01:34]}  Nf6 {[%clk 0:01:11]} 22. Qb4 {[%clk 0:00:59]}  h5 {[%clk 0:01:04]} 23. Qe7 {[%clk 0:00:49]}  Qxf4 {[%clk 0:00:52]} 24. Qf8+ {[%clk 0:00:41]}  Kh7 {[%clk 0:00:52]} 25. Qxf7 {[%clk 0:00:42]}  Ng4 {[%clk 0:00:52]} 26. Qxh5+ {[%clk 0:00:40]}  Nh6 {[%clk 0:00:38]} 27. h3 {[%clk 0:00:24]}  Qd2 {[%clk 0:00:31]} 28. Bd6 {[%clk 0:00:20]}  Qe1+ {[%clk 0:00:18]} 29. Kh2 {[%clk 0:00:21]}  Qxf2 {[%clk 0:00:16]} 30. Be5 {[%clk 0:00:17]}  Be4 {[%clk 0:00:08]} 31. Qg5 {[%clk 0:00:18]}  Nf5 {[%clk 0:00:04]} 32. Qh5+ {[%clk 0:00:15]}  Kg8 {[%clk 0:00:04]} 33. Qe8+ {[%clk 0:00:11]}  Kh7 {[%clk 0:00:05]} 34. Qh5+ {[%clk 0:00:11]}  Nh6 {[%clk 0:00:06]} 35. Qg5 {[%clk 0:00:10]}  Qxg2+ {[%clk 0:00:06]} 36. Qxg2 {[%clk 0:00:11]}  Bxg2 {[%clk 0:00:07]} 37. Kxg2 {[%clk 0:00:11]}  Kg6 {[%clk 0:00:07]} 38. Kf3 {[%clk 0:00:11]}  Nf5 {[%clk 0:00:05]} 39. Ke4 {[%clk 0:00:10]}  Ne7 {[%clk 0:00:05]} 40. c4 {[%clk 0:00:11]}  Kf7 {[%clk 0:00:02]} 41. d5 {[%clk 0:00:11]}  cxd5+ {[%clk 0:00:03]} 42. cxd5 {[%clk 0:00:12]}  g6 {[%clk 0:00:03]} 43. d6 {[%clk 0:00:07]}  Nc6 {[%clk 0:00:01]} 44. Kd5 {[%clk 0:00:06]}  Nxe5 {[%clk 0:00:01]} 45. Kxe5 {[%clk 0:00:07]}  b5 {[%clk 0:00:01]} 46. Kd5 {[%clk 0:00:07]}  Ke8 {[%clk 0:00:02]} 47. Kc5 {[%clk 0:00:07]}  a6 {[%clk 0:00:02]} 48. Kb6 {[%clk 0:00:06]}  Kd7 {[%clk 0:00:02]} 49. Kxa6 {[%clk 0:00:06]}  b4 {[%clk 0:00:02]} 50. Kb5 {[%clk 0:00:06]}  Kxd6 {[%clk 0:00:03]} 51. Kxb4 {[%clk 0:00:06]}  Kd5 {[%clk 0:00:02]} 52. a4 {[%clk 0:00:07]}  Kc6 {[%clk 0:00:02]} 53. Kc4 {[%clk 0:00:06]}  g5 {[%clk 0:00:02]} 54. Kd4 {[%clk 0:00:07]}  Kb6 {[%clk 0:00:02]} 55. Ke4 {[%clk 0:00:07]}  Ka5 {[%clk 0:00:03]} 56. Kf5 {[%clk 0:00:07]}  g4 {[%clk 0:00:04]} 57. hxg4 {[%clk 0:00:07]}  Kxa4 {[%clk 0:00:05]} 58. g5 {[%clk 0:00:08]}  Kb4 {[%clk 0:00:06]} 59. g6 {[%clk 0:00:09]} 1-0


[Site "https://www.chess.com"]

[Event "Titled Tuesday Blitz July 05 Early 2022"]
[White "Rostovtsev, Dmitry"]
[Black "Franca, Ricardo Bedin"]
[WhiteFideId "34278320"]
[BlackFideId "2107066"]
[WhiteElo "2232"]
[BlackElo "2549"]
[Result "1-0"]
[Round "08"]
[TimeControl "180+1"]
[Date "2022.07.05"]
[WhiteClock "0:00:46"]
[BlackClock "0:01:16"]

1. c4 {[%clk 0:03:00]}  e5 {[%clk 0:02:41]} 2. Nc3 {[%clk 0:03:00]}  Nc6 {[%clk 0:02:41]} 3. Nf3 {[%clk 0:02:59]}  Nf6 {[%clk 0:02:41]} 4. e4 {[%clk 0:02:58]}  Bc5 {[%clk 0:02:39]} 5. Nxe5 {[%clk 0:02:58]}  Nxe5 {[%clk 0:02:35]} 6. d4 {[%clk 0:02:58]}  Bxd4 {[%clk 0:02:32]} 7. Qxd4 {[%clk 0:02:59]}  Nc6 {[%clk 0:02:33]} 8. Qd1 {[%clk 0:02:57]}  d6 {[%clk 0:02:29]} 9. Be2 {[%clk 0:02:50]}  O-O {[%clk 0:02:26]} 10. Bg5 {[%clk 0:02:47]}  h6 {[%clk 0:02:27]} 11. Bh4 {[%clk 0:02:48]}  Be6 {[%clk 0:02:23]} 12. f3 {[%clk 0:02:44]}  Ne5 {[%clk 0:02:20]} 13. b3 {[%clk 0:02:43]}  Ng6 {[%clk 0:02:20]} 14. Bg3 {[%clk 0:02:42]}  Nh5 {[%clk 0:02:20]} 15. Qd2 {[%clk 0:02:40]}  Qg5 {[%clk 0:02:18]} 16. Qxg5 {[%clk 0:02:36]}  hxg5 {[%clk 0:02:19]} 17. Nd5 {[%clk 0:02:31]}  Rac8 {[%clk 0:02:15]} 18. Bf2 {[%clk 0:02:28]}  c6 {[%clk 0:02:09]} 19. Nc3 {[%clk 0:02:24]}  a6 {[%clk 0:02:07]} 20. g3 {[%clk 0:02:14]}  Rfd8 {[%clk 0:02:04]} 21. f4 {[%clk 0:02:08]}  Nhxf4 {[%clk 0:02:04]} 22. gxf4 {[%clk 0:02:08]}  Nxf4 {[%clk 0:02:04]} 23. Bf3 {[%clk 0:01:53]}  b5 {[%clk 0:01:49]} 24. cxb5 {[%clk 0:01:41]}  axb5 {[%clk 0:01:48]} 25. Bg3 {[%clk 0:01:32]}  f6 {[%clk 0:01:40]} 26. Bxf4 {[%clk 0:01:26]}  gxf4 {[%clk 0:01:40]} 27. h4 {[%clk 0:01:26]}  b4 {[%clk 0:01:33]} 28. Ne2 {[%clk 0:01:26]}  g5 {[%clk 0:01:33]} 29. hxg5 {[%clk 0:01:26]}  fxg5 {[%clk 0:01:34]} 30. Rg1 {[%clk 0:01:23]}  d5 {[%clk 0:01:30]} 31. Rxg5+ {[%clk 0:01:19]}  Kf7 {[%clk 0:01:30]} 32. Nxf4 {[%clk 0:01:10]}  dxe4 {[%clk 0:01:28]} 33. Bh5+ {[%clk 0:01:04]}  Kf6 {[%clk 0:01:28]} 34. Rg6+ {[%clk 0:01:05]}  Kf5 {[%clk 0:01:29]} 35. Nxe6 {[%clk 0:01:05]}  Rh8 {[%clk 0:01:28]} 36. Ng7+ {[%clk 0:01:05]}  Ke5 {[%clk 0:01:27]} 37. Rg5+ {[%clk 0:01:01]}  Kf4 {[%clk 0:01:23]} 38. Rf5+ {[%clk 0:00:56]}  Ke3 {[%clk 0:01:22]} 39. O-O-O {[%clk 0:00:53]}  Rcg8 {[%clk 0:01:22]} 40. Rg1 {[%clk 0:00:46]}  Rh7 {[%clk 0:01:20]} 41. Rg3+ {[%clk 0:00:46]}  Kd4 {[%clk 0:01:16]} 42. Ne6# {[%clk 0:00:46]} 1-0


[Site "https://www.chess.com"]